fUSD/lending_fUSD_20250208
["ID","MTS","AMOUNT","RATE_DAILY","PERIOD"]
[352230622,1739011846101,-500.78909606,0.00010972,2]
[352230624,1739011846111,-500.78050779,0.00010972,2]
[352230626,1739011846121,-500.70026187,0.00010972,2]
[352230628,1739011846130,-501.10364691,0.00010972,2]
[352230630,1739011846140,-294.57277078,0.00010972,2]
[352230632,1739011846150,-500.0,0.00010972,2]
[352230634,1739011846160,-500.0,0.00010972,2]
[352230636,1739011846169,-500.0,0.00010972,2]
[352230638,1739011846179,-500.0,0.00010972,2]
[352230640,1739011846189,-500.51149633,0.00010972,2]
[352230642,1739011846198,-411.23436765,0.00010972,2]
[352230644,1739011846209,-500.0,0.00010972,2]
[352230646,1739011846218,-500.65626589,0.00010972,2]
[352230648,1739011846228,-500.70890836,0.00010972,2]
[352230650,1739011846239,-501.16229473,0.00010972,2]
[352230652,1739011846256,-161.93931037,0.00010972,2]
[352230654,1739011846266,-500.0,0.00010972,2]
[352230656,1739011846276,-250.57438247,0.00010972,2]
[352230658,1739011846287,-501.08698001,0.00010972,2]
[352230660,1739011846297,-500.0,0.00010972,2]
[352230662,1739011846308,-151.0,0.00010972,2]
[352230664,1739011846318,-500.0,0.00010972,2]
[352230666,1739011846329,-244.866346,0.00010972,2]
[352230668,1739011846340,-504.34727494,0.00010972,2]
[352230670,1739011846350,-500.0,0.00010972,2]
[352230672,1739011846360,-500.0,0.00010972,2]
[352230674,1739011846370,-500.0,0.00010972,2]
[352230676,1739011846380,-500.0,0.00010972,2]
[352230678,1739011846390,-500.0,0.00010972,2]
[352230680,1739011846399,-500.0,0.00010972,2]
[352230682,1739011846408,-396.54587424,0.00010972,2]
[352230684,1739011846417,-553.57617737,0.00010972,2]
[352230686,1739011846427,-500.0,0.00010972,2]
[352230688,1739011846436,-505.1870657,0.00010972,2]
[352230690,1739011846445,-525.53469852,0.00010972,2]
[352230692,1739011846454,-302.34897898,0.00010972,2]
[352230694,1739011846463,-160.11008497,0.00010972,2]
[352230696,1739011846474,-500.0,0.00010972,2]
[352230698,1739011846483,-368.44214824,0.00010972,2]
[352231218,1739011862778,1000.94610705,0.0002,120]
[352231219,1739011881301,-500.0,0.00010999,7]
[352231220,1739011947922,-500.0,0.00011136,7]
[352231221,1739011947990,-500.0,0.00011273,7]
[352231222,1739011948053,-500.0,0.0001141,7]
[352231223,1739011948111,-500.0,0.00011547,7]
[352231224,1739011948171,-287.52199653,0.00011684,7]
[352231225,1739011978018,-232.52352023,0.00010998,3]
[352231226,1739011978041,-62979.95448324,0.00010998,3]
[352231230,1739012078991,-3140.5323,8.836e-05,2]
[352231231,1739012129029,1069.8025,8.836e-05,2]
[352231232,1739012245201,798.87,8.219e-05,2]
[352231234,1739013037810,-6453.79081712,9.445e-05,2]
[352231235,1739013037917,-17446.20918288,9.445e-05,2]
[352231236,1739013037926,-250.0,9.447e-05,2]
[352231237,1739013037936,-3109.84,9.474e-05,2]
[352231238,1739013037945,-2197.47,9.477e-05,2]
[352231239,1739013037955,-1323.12,9.505e-05,2]
[352231240,1739013037965,-163.18,9.556e-05,2]
[352231241,1739013037974,-171.16,9.768e-05,2]
[352231242,1739013038261,-200.0,9.827e-05,2]
[352231243,1739013038270,-164.57,9.827e-05,2]
[352231244,1739013038279,-164.57,9.836e-05,2]
[352231246,1739013038288,-12713.998086,9.838e-05,2]
[352231247,1739013038297,-164.57,9.844e-05,2]
[352231249,1739013038306,-164.57,9.852e-05,2]
[352231251,1739013038315,-164.57,9.86e-05,2]
[352231253,1739013038325,-1267.42,9.867e-05,2]
[352231255,1739013038336,-164.57,9.868e-05,2]
[352231258,1739013038352,-164.57,9.877e-05,2]
[352231260,1739013038361,-297.5351065,9.888e-05,2]
[352231261,1739013038370,-244.2593734,9.888e-05,2]
[352231263,1739013038382,-227.11594412,9.888e-05,2]
[352231265,1739013038391,-150.56602609,9.888e-05,2]
[352231267,1739013038400,-1687.01,9.943e-05,2]
[352231270,1739013038410,-1000.0,9.957e-05,2]
[352231271,1739013038420,-300.0,9.999e-05,2]
[352231273,1739013038429,-502.18,0.0001,2]
[352231275,1739013038438,-166.9,0.00010008,2]
[352231277,1739013038447,-184.32,0.00010021,2]
[352231279,1739013038456,-150.41,0.00010078,2]
[352231281,1739013038465,-151.69,0.00010078,2]
[352231283,1739013038475,-161.25,0.00010137,2]
[352231285,1739013038484,-415.46,0.00010137,2]
[352231287,1739013038494,-150.0,0.00010137,2]
[352231290,1739013038504,-166.66,0.00010323,2]
[352231292,1739013038513,-150.0,0.00010378,2]
[352231293,1739013038522,-798.87,0.00010474,2]
[352231295,1739013038531,-171.16,0.00010574,2]
[352231297,1739013038540,-163.18,0.00010751,2]
[352231299,1739013038548,-200.2,0.00010783,2]
[352231301,1739013038557,-348.65067545,0.00010897,2]
[352231303,1739013038566,-175.67239071,0.00010897,2]
[352231305,1739013038575,-429.22629453,0.00010897,2]
[352231307,1739013038584,-3028.61800177,0.000109,2]
[352231309,1739013038593,-207.48922038,0.000109,2]
[352231311,1739013038602,-925.68381984,0.000109,2]
[352231313,1739013038611,-1391.164,0.00010919,2]
[352231315,1739013038620,-1013.63465895,0.00010934,2]
[352231317,1739013038630,-797.14,0.00010935,2]
[352231319,1739013038639,-1731.03,0.00010935,2]
[352231321,1739013038648,-500.0,0.00010935,2]
[352231323,1739013038657,-500.0,0.00010935,2]
[352231325,1739013038666,-500.0,0.00010935,2]
[352231327,1739013038675,-668.35,0.00010935,2]
[352231329,1739013038684,-2004.66,0.00010935,2]
[352231331,1739013038693,-500.0,0.00010935,2]
[352231333,1739013038702,-1077.05,0.00010935,2]
[352231335,1739013038711,-501.29333952,0.00010935,2]
[352231337,1739013038720,-2089.48,0.00010935,2]
[352231339,1739013038729,-500.0,0.00010935,2]
[352231341,1739013038738,-500.0,0.00010935,2]
[352231343,1739013038748,-500.0,0.00010935,2]
[352231345,1739013038757,-513.53785999,0.00010935,2]
[352231347,1739013038767,-1253.82,0.00010935,2]
[352231349,1739013038777,-1374.02,0.00010935,2]
[352231351,1739013038786,-2869.72,0.00010935,2]
[352231353,1739013038795,-500.0,0.00010935,2]
[352231355,1739013038804,-1294.44,0.00010935,2]
[352231357,1739013038813,-983.53,0.00010935,2]
[352231359,1739013038822,-933.79,0.00010935,2]
[352231361,1739013038831,-1322.64,0.00010935,2]
[352231363,1739013038840,-900.11,0.00010935,2]
[352231365,1739013038850,-795.17,0.00010935,2]
[352231367,1739013038859,-956.97,0.00010935,2]
[352231369,1739013038868,-1034.64,0.00010935,2]
[352231371,1739013038877,-2154.87,0.00010935,2]
[352231373,1739013038886,-500.0,0.00010935,2]
[352231375,1739013038895,-500.0,0.00010935,2]
[352231377,1739013038904,-500.0,0.00010935,2]
[352231379,1739013038913,-909.52,0.00010935,2]
[352231381,1739013038922,-814.41,0.00010935,2]
[352231382,1739013038930,-853.96,0.00010935,2]
[352231385,1739013038940,-1757.52,0.00010935,2]
[352231387,1739013038949,-1223.58,0.00010935,2]
[352231389,1739013038958,-1771.87,0.00010935,2]
[352231391,1739013038967,-1197.12,0.00010935,2]
[352231393,1739013038977,-500.0,0.00010935,2]
[352231395,1739013038986,-768.54,0.00010935,2]
[352231397,1739013038996,-1395.95,0.00010935,2]
[352231399,1739013039005,-974.36,0.00010935,2]
[352231401,1739013039014,-500.0,0.00010935,2]
[352231402,1739013039023,-1653.78,0.00010935,2]
[352231404,1739013039033,-500.0,0.00010935,2]
[352231406,1739013039041,-1136.85,0.00010935,2]
[352231408,1739013039050,-547.7,0.00010935,2]
[352231410,1739013039059,-815.55,0.00010935,2]
[352231412,1739013039068,-500.0,0.00010935,2]
[352231414,1739013039077,-1561.4,0.00010935,2]
[352231416,1739013039086,-676.39,0.00010935,2]
[352231418,1739013039095,-513.260974,0.00010935,2]
[352231420,1739013039104,-933.77,0.00010935,2]
[352231422,1739013039114,-727.83,0.00010935,2]
[352231424,1739013039123,-678.91,0.00010935,2]
[352231426,1739013039132,-500.0,0.00010935,2]
[352231428,1739013039141,-804.99,0.00010935,2]
[352231430,1739013039150,-500.0,0.00010935,2]
[352231432,1739013039159,-1045.63,0.00010935,2]
[352231434,1739013039168,-878.01,0.00010935,2]
[352231436,1739013039179,-874.83,0.00010935,2]
[352231438,1739013039188,-1287.44,0.00010935,2]
[352231440,1739013039198,-1828.17,0.00010935,2]
[352231442,1739013039207,-1372.8,0.00010935,2]
[352231444,1739013039217,-500.0,0.00010935,2]
[352231446,1739013039226,-500.0,0.00010935,2]
[352231448,1739013039235,-500.0,0.00010935,2]
[352231450,1739013039245,-1591.32,0.00010935,2]
[352231452,1739013039254,-1277.24,0.00010935,2]
[352231454,1739013039265,-609.5,0.00010935,2]
[352231456,1739013039274,-1105.29,0.00010935,2]
[352231458,1739013039283,-1133.97,0.00010935,2]
[352231460,1739013039293,-2052.84,0.00010935,2]
[352231462,1739013039303,-1506.96,0.00010935,2]
[352231464,1739013039311,-500.0,0.00010935,2]
[352231466,1739013039321,-585.89,0.00010935,2]
[352231468,1739013039331,-2183.67,0.00010935,2]
[352231469,1739013039342,-1881.39,0.00010935,2]
[352231470,1739013039351,-11957.13523393,0.00010948,2]
[352231471,1739013039360,-2000.0,0.00010959,2]
[352231472,1739013039370,-490.4,0.00010959,2]
[352231473,1739013039381,-500.0,0.00010971,2]
[352231474,1739013039390,-4000.0,0.00010972,2]
[352231475,1739013039400,-35083.8427261,0.00010972,2]
[352231476,1739013039410,-500.0,0.00010973,2]
[352231477,1739013039421,-500.0,0.00010973,2]
[352231478,1739013039430,-439.61,0.00010986,2]
[352231479,1739013039439,-445.56,0.00010986,2]
[352231480,1739013039449,-774.96,0.00010986,2]
[352231481,1739013039459,-2624.82,0.00010995,2]
[352231482,1739013039469,-2311.14,0.00010995,2]
[352231483,1739013039480,-1530.98,0.00010995,2]
[352231484,1739013039493,-2112.49,0.00010995,2]
[352231486,1739013039502,-5023.57,0.00010995,2]
[352231487,1739013039512,-4357.4,0.00010995,2]
[352231489,1739013039523,-500.0,0.00010995,2]
[352231491,1739013039533,-3534.9,0.00010995,2]
[352231493,1739013039542,-3593.71,0.00010995,2]
[352231495,1739013039553,-1030.68,0.00010995,2]
[352231498,1739013039564,-1465.28,0.00010995,2]
[352231500,1739013039575,-2712.71,0.00010995,2]
[352231502,1739013039584,-3901.85,0.00010995,2]
[352231504,1739013039593,-5908.12,0.00010995,2]
[352231506,1739013039602,-5342.84,0.00010995,2]
[352231508,1739013039612,-2391.85,0.00010995,2]
[352231509,1739013039621,-2076.57,0.00010995,2]
[352231511,1739013039630,-500.0,0.00010995,2]
[352231513,1739013039639,-5698.13,0.00010995,2]
[352231516,1739013039649,-2309.9,0.00010995,2]
[352231517,1739013039658,-2212.02,0.00010995,2]
[352231519,1739013039668,-500.0,0.00010995,2]
[352231521,1739013039677,-755.52,0.00010995,2]
[352231523,1739013039686,-1450.19,0.00010995,2]
[352231525,1739013039696,-755.35,0.00010995,2]
[352231527,1739013039705,-1681.08,0.00010995,2]
[352231529,1739013039715,-1214.99,0.00010995,2]
[352231531,1739013039724,-500.0,0.00010995,2]
[352231533,1739013039733,-623.04,0.00010995,2]
[352231535,1739013039745,-2156.18,0.00010995,2]
[352231537,1739013039755,-5375.13,0.00010995,2]
[352231539,1739013039765,-155.827945,0.00010995,2]
[352231541,1739013039774,-1130.4,0.00010995,2]
[352231543,1739013039784,-2448.76,0.00010995,2]
[352231545,1739013039794,-500.0,0.00010995,2]
[352231547,1739013039804,-1595.13,0.00010995,2]
[352231549,1739013039814,-500.0,0.00010996,2]
[352231551,1739013039824,-503.18400541,0.00010996,2]
[352231553,1739013039833,-500.0,0.00010996,2]
[352231556,1739013039843,-500.0,0.00010996,2]
[352231558,1739013039853,-500.0,0.00010996,2]
[352231560,1739013039863,-500.0,0.00010996,2]
[352231562,1739013039872,-503.89774366,0.00010996,2]
[352231564,1739013039881,-500.0,0.00010996,2]
[352231566,1739013039890,-647.25,0.00010996,2]
[352231568,1739013039899,-500.0,0.00010996,2]
[352231570,1739013039909,-500.0,0.00010996,2]
[352231572,1739013039918,-500.0,0.00010996,2]
[352231574,1739013039928,-500.0,0.00010996,2]
[352231576,1739013039937,-500.0,0.00010996,2]
[352231578,1739013039946,-500.0,0.00010996,2]
[352231579,1739013039955,-500.0,0.00010996,2]
[352231581,1739013039964,-510.2,0.00010996,2]
[352231583,1739013039974,-500.0,0.00010996,2]
[352231585,1739013039983,-500.0,0.00010996,2]
[352231587,1739013039994,-500.0,0.00010996,2]
[352231589,1739013040004,-500.0,0.00010996,2]
[352231591,1739013040013,-500.0,0.00010996,2]
[352231593,1739013040022,-500.0,0.00010996,2]
[352231595,1739013040031,-276.675103,0.00010996,2]
[352231597,1739013040041,-2124.11,0.00010996,2]
[352231599,1739013040050,-500.0,0.00010996,2]
[352231601,1739013040060,-5893.56,0.00010996,2]
[352231603,1739013040069,-3358.801698,0.00010996,2]
[352231605,1739013040077,-1726.29,0.00010996,2]
[352231607,1739013040087,-2160.36,0.00010996,2]
[352231609,1739013040096,-576.21,0.00010996,2]
[352231611,1739013040105,-1327.73,0.00010996,2]
[352231613,1739013040114,-3645.58,0.00010996,2]
[352231615,1739013040123,-3378.237504,0.00010996,2]
[352231617,1739013040132,-152.091761,0.00010996,2]
[352231619,1739013040142,-774.41,0.00010996,2]
[352231621,1739013040151,-2948.09,0.00010996,2]
[352231623,1739013040160,-2267.8,0.00010996,2]
[352231625,1739013040169,-1001.04,0.00010996,2]
[352231627,1739013040179,-500.0,0.00010996,2]
[352231629,1739013040188,-1847.11,0.00010996,2]
[352231631,1739013040198,-500.0,0.00010996,2]
[352231633,1739013040207,-1735.24,0.00010996,2]
[352231635,1739013040215,-500.0,0.00010996,2]
[352231636,1739013040224,-1678.32,0.00010996,2]
[352231638,1739013040233,-500.0,0.00010996,2]
[352231640,1739013040242,-3512.39,0.00010996,2]
[352231642,1739013040251,-3805.67,0.00010996,2]
[352231644,1739013040261,-500.0,0.00010996,2]
[352231646,1739013040270,-2607.62,0.00010996,2]
[352231649,1739013040281,-500.0,0.00010996,2]
[352231651,1739013040290,-3258.61,0.00010996,2]
[352231653,1739013040299,-4739.99,0.00010996,2]
[352231655,1739013040308,-12222.98,0.00010996,2]
[352231657,1739013040317,-3871.33,0.00010996,2]
[352231659,1739013040327,-5557.03,0.00010996,2]
[352231660,1739013040338,-500.0,0.00010996,2]
[352231663,1739013040351,-500.0,0.00010996,2]
[352231665,1739013040361,-8192.71,0.00010996,2]
[352231667,1739013040372,-2796.47,0.00010996,2]
[352231668,1739013040383,-538.39,0.00010996,2]
[352231670,1739013040396,-555.96,0.00010996,2]
[352231672,1739013040409,-1656.22,0.00010996,2]
[352231674,1739013040419,-5463.22,0.00010996,2]
[352231677,1739013040428,-500.0,0.00010996,2]
[352231678,1739013040439,-4928.16,0.00010996,2]
[352231681,1739013040449,-4249.23,0.00010996,2]
[352231682,1739013040458,-500.0,0.00010996,2]
[352231684,1739013040467,-500.0,0.00010996,2]
[352231686,1739013040476,-500.0,0.00010996,2]
[352231688,1739013040486,-657.49908185,0.00010996,3]
[352231690,1739013040495,-2087.0,0.00010997,2]
[352231692,1739013040505,-300.0,0.00010997,2]
[352231694,1739013040515,-300.0,0.00010997,2]
[352231696,1739013040525,-500.0,0.00010997,2]
[352231698,1739013040536,-500.0,0.00010997,2]
[352231700,1739013040547,-500.0,0.00010997,2]
[352231702,1739013040558,-500.0,0.00010997,2]
[352231704,1739013040567,-500.0,0.00010997,2]
[352231707,1739013040577,-500.0,0.00010997,2]
[352231709,1739013040586,-502.62465536,0.00010997,2]
[352231711,1739013040596,-500.0,0.00010997,2]
[352231712,1739013040605,-500.0,0.00010997,2]
[352231714,1739013040614,-787.27,0.00010997,2]
[352231717,1739013040624,-500.0,0.00010997,2]
[352231719,1739013040633,-500.0,0.00010997,2]
[352231721,1739013040643,-500.0,0.00010997,2]
[352231722,1739013040653,-500.0,0.00010997,2]
[352231724,1739013040662,-500.0,0.00010997,2]
[352231726,1739013040671,-500.0,0.00010997,2]
[352231729,1739013040681,-543.89554214,0.00010997,2]
[352231730,1739013040690,-502.37101919,0.00010997,2]
[352231732,1739013040699,-544.12898078,0.00010997,2]
[352231734,1739013040709,-500.0,0.00010997,2]
[352231736,1739013040718,-158.36612,0.00010997,2]
[352231738,1739013040727,-500.0,0.00010997,2]
[352231740,1739013040736,-500.0,0.00010997,2]
[352231742,1739013040746,-500.82326655,0.00010997,2]
[352231744,1739013040755,-500.0,0.00010997,2]
[352231746,1739013040763,-500.0,0.00010997,2]
[352231748,1739013040773,-500.0,0.00010997,2]
[352231750,1739013040781,-500.97320927,0.00010997,2]
[352231752,1739013040791,-500.0,0.00010997,2]
[352231754,1739013040800,-500.0,0.00010997,2]
[352231756,1739013040809,-500.0,0.00010997,2]
[352231758,1739013040817,-517.87,0.00010997,2]
[352231760,1739013040827,-500.0,0.00010997,2]
[352231762,1739013040837,-500.0,0.00010997,2]
[352231764,1739013040846,-500.0,0.00010997,2]
[352231766,1739013040855,-501.64239541,0.00010997,2]
[352231768,1739013040865,-500.0,0.00010997,2]
[352231770,1739013040874,-500.0,0.00010997,2]
[352231772,1739013040883,-500.0,0.00010997,2]
[352231774,1739013040892,-500.0,0.00010997,2]
[352231776,1739013040901,-500.0,0.00010997,2]
[352231778,1739013040910,-500.0,0.00010997,2]
[352231780,1739013040919,-500.0,0.00010997,2]
[352231782,1739013040928,-500.0,0.00010997,2]
[352231784,1739013040937,-500.0,0.00010997,2]
[352231786,1739013040947,-500.0,0.00010997,2]
[352231788,1739013040956,-500.0,0.00010997,2]
[352231790,1739013040965,-661.99,0.00010997,2]
[352231792,1739013040974,-500.0,0.00010997,2]
[352231794,1739013040983,-500.0,0.00010997,2]
[352231796,1739013040992,-500.0,0.00010997,2]
[352231798,1739013041002,-500.0,0.00010997,2]
[352231800,1739013041012,-500.0,0.00010997,2]
[352231802,1739013041022,-821.02,0.00010997,2]
[352231804,1739013041032,-500.0,0.00010997,2]
[352231806,1739013041042,-500.0,0.00010997,2]
[352231808,1739013041051,-500.0,0.00010997,2]
[352231810,1739013041061,-1772.05,0.00010997,2]
[352231812,1739013041071,-500.0,0.00010997,2]
[352231814,1739013041080,-500.0,0.00010997,2]
[352231816,1739013041089,-500.0,0.00010997,2]
[352231818,1739013041099,-500.0,0.00010997,2]
[352231820,1739013041107,-500.0,0.00010997,2]
[352231822,1739013041116,-500.0,0.00010997,2]
[352231824,1739013041126,-964.41,0.00010997,2]
[352231826,1739013041136,-497.42417735,0.00010997,2]
[352231828,1739013041145,-896.8,0.00010997,2]
[352231830,1739013041155,-500.0,0.00010997,2]
[352231832,1739013041165,-500.0,0.00010997,2]
[352231834,1739013041174,-500.0,0.00010997,2]
[352231837,1739013041184,-500.0,0.00010997,2]
[352231839,1739013041193,-500.0,0.00010997,2]
[352231841,1739013041203,-2054.77,0.00010997,2]
[352231843,1739013041212,-500.0,0.00010997,2]
[352231845,1739013041221,-329.55271213,0.00010997,2]
[352231847,1739013041231,-500.0,0.00010997,2]
[352231849,1739013041240,-500.0,0.00010997,2]
[352231851,1739013041250,-500.0,0.00010997,2]
[352231853,1739013041260,-500.0,0.00010997,2]
[352231855,1739013041272,-500.0,0.00010997,2]
[352231857,1739013041281,-500.0,0.00010997,2]
[352231859,1739013041291,-500.0,0.00010997,2]
[352231861,1739013041300,-1316.88,0.00010997,2]
[352231863,1739013041309,-501.35867069,0.00010997,2]
[352231865,1739013041319,-500.0,0.00010997,2]
[352231867,1739013041329,-500.0,0.00010997,2]
[352231869,1739013041338,-500.0,0.00010997,2]
[352231871,1739013041350,-500.0,0.00010997,2]
[352231873,1739013041359,-500.0,0.00010997,2]
[352231875,1739013041368,-2052.96,0.00010997,2]
[352231877,1739013041379,-501.39510163,0.00010997,2]
[352231879,1739013041388,-500.0,0.00010997,2]
[352231881,1739013041397,-500.0,0.00010997,2]
[352231883,1739013041406,-500.0,0.00010997,2]
[352231884,1739013041416,-500.0,0.00010997,2]
[352231887,1739013041426,-501.41113033,0.00010997,2]
[352231888,1739013041435,-501.69403305,0.00010997,2]
[352231890,1739013041444,-500.0,0.00010997,2]
[352231892,1739013041453,-500.0,0.00010997,2]
[352231894,1739013041463,-811.38,0.00010997,2]
[352231896,1739013041472,-500.0,0.00010997,2]
[352231898,1739013041481,-501.05812932,0.00010997,2]
[352231900,1739013041490,-1019.72,0.00010997,2]
[352231902,1739013041501,-500.0,0.00010997,2]
[352231904,1739013041510,-500.0,0.00010997,2]
[352231906,1739013041520,-502.91394948,0.00010997,2]
[352231908,1739013041530,-500.0,0.00010997,2]
[352231910,1739013041540,-705.84,0.00010997,2]
[352231912,1739013041550,-500.0,0.00010997,2]
[352231914,1739013041560,-2537.39,0.00010997,2]
[352231917,1739013041570,-500.0,0.00010997,2]
[352231918,1739013041579,-501.74042655,0.00010997,2]
[352231920,1739013041588,-500.0,0.00010997,2]
[352231922,1739013041599,-500.0,0.00010997,2]
[352231925,1739013041611,-716.34,0.00010997,2]
[352231927,1739013041621,-500.0,0.00010997,2]
[352231928,1739013041631,-500.0,0.00010997,2]
[352231931,1739013041641,-500.0,0.00010997,2]
[352231932,1739013041650,-500.0,0.00010997,2]
[352231934,1739013041660,-620.74254604,0.00010997,2]
[352231936,1739013041670,-503.40847391,0.00010997,2]
[352231939,1739013041680,-500.0,0.00010997,2]
[352231940,1739013041689,-936.48,0.00010997,2]
[352231943,1739013041699,-500.0,0.00010997,2]
[352231945,1739013041709,-500.0,0.00010997,2]
[352231946,1739013041727,-1011.69,0.00010997,2]
[352231948,1739013041746,-500.0,0.00010997,2]
[352231950,1739013041759,-500.0,0.00010997,2]
[352231953,1739013041768,-500.0,0.00010997,2]
[352231954,1739013041777,-874.09,0.00010997,2]
[352231956,1739013041786,-500.0,0.00010997,2]
[352231958,1739013041796,-500.0,0.00010997,2]
[352231960,1739013041805,-500.0,0.00010997,2]
[352231963,1739013041815,-500.0,0.00010997,2]
[352231964,1739013041823,-501.21552088,0.00010997,2]
[352231966,1739013041833,-500.0,0.00010997,2]
[352231968,1739013041842,-500.0,0.00010997,2]
[352231970,1739013041851,-726.83,0.00010997,2]
[352231972,1739013041860,-500.0,0.00010997,2]
[352231974,1739013041871,-500.57011229,0.00010997,2]
[352231976,1739013041880,-500.0,0.00010997,2]
[352231978,1739013041889,-500.0,0.00010997,2]
[352231980,1739013041899,-500.0,0.00010997,2]
[352231982,1739013041908,-500.0,0.00010997,2]
[352231984,1739013041917,-500.0,0.00010997,2]
[352231986,1739013041927,-500.0,0.00010997,2]
[352231988,1739013041936,-500.0,0.00010997,2]
[352231990,1739013041945,-500.0,0.00010997,2]
[352231992,1739013041954,-1536.23,0.00010997,2]
[352231994,1739013041964,-500.0,0.00010997,2]
[352231996,1739013041973,-500.0,0.00010997,2]
[352231999,1739013041983,-500.0,0.00010997,2]
[352232000,1739013041994,-503.05550398,0.00010997,2]
[352232003,1739013042003,-773.18,0.00010997,2]
[352232005,1739013042012,-500.0,0.00010997,2]
[352232006,1739013042022,-500.0,0.00010997,2]
[352232009,1739013042031,-500.0,0.00010997,2]
[352232011,1739013042041,-500.0,0.00010997,2]
[352232012,1739013042050,-235.48365965,0.00010997,2]
[352232014,1739013042059,-611.63,0.00010997,2]
[352232016,1739013042068,-532.87,0.00010997,2]
[352232018,1739013042077,-500.0,0.00010997,2]
[352232021,1739013042095,-500.0,0.00010997,2]
[352232023,1739013042105,-500.0,0.00010997,2]
[352232025,1739013042115,-602.29509391,0.00010997,2]
[352232027,1739013042124,-708.91,0.00010997,2]
[352232029,1739013042143,-500.00002167,0.00010997,2]
[352232031,1739013042153,-500.0,0.00010997,2]
[352232033,1739013042163,-500.0,0.00010997,2]
[352232035,1739013042173,-500.0,0.00010997,2]
[352232037,1739013042182,-500.0,0.00010997,2]
[352232039,1739013042192,-2071.14,0.00010997,2]
[352232041,1739013042201,-500.0,0.00010997,2]
[352232043,1739013042210,-543.93821262,0.00010997,2]
[352232045,1739013042219,-500.0,0.00010997,2]
[352232047,1739013042229,-500.0,0.00010997,2]
[352232049,1739013042238,-818.79,0.00010997,2]
[352232051,1739013042248,-500.0,0.00010997,2]
[352232052,1739013042257,-500.0,0.00010997,2]
[352232054,1739013042266,-500.0,0.00010997,2]
[352232056,1739013042275,-151.29257374,0.00010997,2]
[352232058,1739013042284,-981.65,0.00010997,2]
[352232081,1739013042471,-502.14158027,0.00010997,2]
[352232083,1739013042511,-500.0,0.00010997,2]
[352232085,1739013042521,-500.0,0.00010997,2]
[352232087,1739013042531,-500.0,0.00010997,2]
[352232089,1739013042541,-500.0,0.00010997,2]
[352232091,1739013042550,-500.0,0.00010997,2]
[352232093,1739013042560,-502.24151277,0.00010997,2]
[352232095,1739013042570,-947.55,0.00010997,2]
[352232097,1739013042579,-500.0,0.00010997,2]
[352232099,1739013042588,-500.0,0.00010997,2]
[352232102,1739013042598,-500.0,0.00010997,2]
[352232104,1739013042608,-500.0,0.00010997,2]
[352232106,1739013042617,-500.0,0.00010997,2]
[352232108,1739013042626,-500.0,0.00010997,2]
[352232110,1739013042635,-2250.99,0.00010997,2]
[352232112,1739013042644,-500.0,0.00010997,2]
[352232114,1739013042654,-500.0,0.00010997,2]
[352232116,1739013042663,-500.0,0.00010997,2]
[352232118,1739013042673,-500.0,0.00010997,2]
[352232120,1739013042682,-500.0,0.00010997,2]
[352232122,1739013042692,-500.0,0.00010997,2]